[Event "45th FIDE Womens Olympiad 2024"]
[Site "Budapest"]
[Date "2024.09.15"]
[Round "5.33"]
[White "Dolgova, Olga"]
[Black "Khademalsharieh, Sarasadat"]
[Result "0-1"]
[ECO "D02"]
[WhiteElo "2171"]
[BlackElo "2468"]
[Annotator "TA"]
[PlyCount "80"]
[EventDate "2024.09.05"]
[EventType "team-tourn"]
[EventCountry "HUN"]
[SourceTitle "playchess.com"]
[Source "ChessBase"]
[SourceQuality "1"]
[WhiteTeam "Norway"]
[BlackTeam "Spain"]
[WhiteTeamCountry "NOR"]
[BlackTeamCountry "ESP"]
[TimeControl "40/5400+30:1800+30"]

{[%evp 13,80,-35,0,4,0,0,0,0,0,-5,-14,-22,-8,-12,-2,-22,-15,-27,-18,-34,0,-40,-2,-130,-135,-231,-229,-337,-164,-317,-282,-419,-287,-249,-226,-205,-238,-331,-329,-408,-389,-414,-408,-416,-415,-460,-457,-1257,-1237,-1139,-1104,-1465,-1580,-9571,-5898,-29983,-29984,-29984,-29985,-29985,-29986,-29986,-29982,-29981,-29982,-29989,-29990,-29990,-29991]} 1. d4 Nf6 2. Bf4 d5 3. e3 e6 4. Nf3 c5 5. Nbd2 Nc6 6. c3 cxd4 7. Nxd4 Be7 8. Bd3 O-O 9. O-O Nd7 10. Bg3 {The position is equal.} e5 11. Nf5 Bf6 {[%cal Oh7h5]} 12. Bc2 Nb6 {Strongly threatening ...g6.} 13. e4 Bxf5 14. exf5 e4 15. Bf4 Re8 16. Qh5 Rc8 {[%cal Oc6b4]} 17. Rae1 (17. Rad1 $5 Qe7 18. Rfe1 $11) 17... Ne5 18. f3 (18. Re3 $11) 18... Nd3 $36 {[%mdl 2048] White is under strong pressure. Black converts the advantage convincingly.} 19. Bxd3 (19. fxe4 $17 Nxe1 20. Rxe1) 19... exd3 $19 20. g4 (20. Rxe8+ $142 Qxe8 21. Bg5) 20... g6 (20... Rxe1 $142 21. Rxe1 h6 (21... d4 $2 22. g5 $19)) 21. fxg6 $2 (21. Rxe8+ Qxe8 22. Qh6) 21... hxg6 ({Less strong is} 21... fxg6 22. Qh6 $19 (22. Rxe8+ $2 Qxe8 23. Qh6 Na4 $19)) 22. Qh3 (22. Qh6 $142) 22... Nc4 23. Nxc4 dxc4 24. Qg2 b5 {...Rxe1 is the strong threat.} 25. Qd2 Qd5 26. Kg2 {[#]} b4 $1 {[%mdl 512] And now ...bxc3 would win.} 27. Rxe8+ (27. Qc1 Bh4) 27... Rxe8 28. Re1 Rc8 29. Rc1 Qa5 30. Bd6 (30. h4 $142) 30... Bg5 31. f4 Qd5+ 32. Kg1 Bd8 {[#] ( -> ...Bb6+)} 33. Be5 Bb6+ 34. Bd4 bxc3 {Black mates.} 35. bxc3 Bxd4+ 36. cxd4 Qxd4+ 37. Qf2 Qxf2+ 38. Kxf2 {KR-KR} d2 39. Ra1 Re8 40. Rd1 c3 {Weighted Error Value: White=0.90/Black=0.20 (precise) .  Mistake:       	White=6     	Black=1      Inaccurate:     	White=2     	Black=3      OK:         	White=6     	Black=10     Best:        	White=1     	Black=1} 0-1

[Event "45th FIDE Womens Olympiad 2024"]
[Site "Budapest"]
[Date "2024.09.15"]
[Round "5.34"]
[White "Garcia Martin, Marta"]
[Black "Stanford, Sheila Barth"]
[Result "1/2-1/2"]
[ECO "B90"]
[WhiteElo "2318"]
[BlackElo "2175"]
[Annotator "TA"]
[PlyCount "104"]
[EventDate "2024.09.05"]
[EventType "team-tourn"]
[EventCountry "HUN"]
[SourceTitle "playchess.com"]
[Source "ChessBase"]
[SourceQuality "1"]
[WhiteTeam "Spain"]
[BlackTeam "Norway"]
[WhiteTeamCountry "ESP"]
[BlackTeamCountry "NOR"]
[TimeControl "40/5400+30:1800+30"]

{[%evp 11,104,21,38,0,18,12,10,18,30,28,29,18,24,23,72,72,80,81,73,73,76,73,71,56,70,65,68,59,59,29,21,18,17,0,0,0,0,0,8,0,8,10,20,0,0,0,0,0,0,0,0,0,0,-8,21,0,0,0,0,0,18,0,0,-15,0,0,0,0,0,-15,-8,-8,-8,-8,-8,-27,0,-63,-75,-71,-52,-53,-53,-54,-39,-96,-73,-67,-64,-70,-97,-237,-221,-234,-216]} 1. e4 c5 2. Nf3 d6 3. d4 cxd4 4. Nxd4 Nf6 5. Nc3 a6 6. h3 e5 7. Nf3 h6 8. Bc4 Be6 9. Bb3 {The position is equal.} Nbd7 10. Be3 Qc7 11. O-O Be7 12. Nh4 Bxb3 (12... O-O $11) 13. cxb3 $16 g6 {Repels Nf5} 14. Rc1 {[%cal Oc3b5]} Qd8 15. Nf3 Kf8 16. b4 Kg7 17. a3 b5 18. Nd2 Rc8 19. Nb3 Nb6 20. Bxb6 Qxb6 21. Na5 Bd8 {[%cal Be7d8,Bd8b6,Bb6d4][%mdl 32]} 22. Qf3 {[#] Threatens to win with Nd5.} Qb8 23. Nb3 Bb6 24. Rcd1 Rhe8 25. Rd3 Re6 26. Qe2 Rc4 27. Nd2 (27. Rfd1 $5) 27... Rc8 28. g3 Bd4 29. Nb3 Rc4 30. Na5 Rc8 31. Nd5 Qa7 32. Kg2 Bb6 33. Nb3 Nxd5 34. Rxd5 Rf6 35. f3 Rc4 36. Rfd1 Qc7 37. Qd3 Rc2+ 38. Rd2 Rxd2+ 39. Qxd2 Ba7 40. Qc1 Qb6 41. Qe1 {Repels Qf2+. Active counter play!} Re6 {[%cal Bf6e6,Be6e7,Be7f7][%mdl 32]} 42. Rd1 Re7 43. Qd2 f5 44. Nc1 (44. exf5 $11 gxf5 45. Qe2) 44... fxe4 $15 45. fxe4 Rf7 46. Nd3 {Prevents Rf2+.} Qb7 $36 {[%mdl 2048] Black is pushing.} 47. Qe2 Rc7 48. Re1 (48. Ne1 $15) 48... Rc4 49. Qf3 Rc2+ 50. Kh1 $1 Qf7 51. Qxf7+ (51. Qd1 $17 {was the only chance.} Rc4 52. Kh2) 51... Kxf7 $19 52. Rc1 {[#]} Rxc1+ $1 {Weighted Error Value: White=0.12 (very precise) /Black=0.06 (flawless) .  Mistake:       	White=3     	Black=1      Inaccurate:     	White=1     	Black=2      OK:         	White=14    	Black=20     Best:        	White=2     	Black=1      Strong:       	White=1     	Black=1} (52... Rd2 53. Nxe5+ Kf6 54. Ng4+ Ke6 55. Nxh6 $11) 1/2-1/2

[Event "45th FIDE Womens Olympiad 2024"]
[Site "Budapest"]
[Date "2024.09.15"]
[Round "5.35"]
[White "Ni, Viktorija"]
[Black "Vega Gutierrez, Sabrina"]
[Result "1/2-1/2"]
[ECO "E12"]
[WhiteElo "2163"]
[BlackElo "2374"]
[Annotator "TA"]
[PlyCount "120"]
[EventDate "2024.09.05"]
[EventType "team-tourn"]
[EventCountry "HUN"]
[SourceTitle "playchess.com"]
[Source "ChessBase"]
[SourceQuality "1"]
[WhiteTeam "Norway"]
[BlackTeam "Spain"]
[WhiteTeamCountry "NOR"]
[BlackTeamCountry "ESP"]
[TimeControl "40/5400+30:1800+30"]

{[%evp 23,120,0,0,0,8,0,12,0,11,12,69,22,38,28,26,28,19,15,15,12,2,0,0,0,2,6,0,0,2,0,-5,-6,0,-7,0,0,0,0,0,0,0,0,0,-8,0,-8,0,0,-4,-8,0,0,0,0,0,0,0,0,0,-7,0,-6,0,0,0,0,0,-8,0,0,0,0,0,-4,-6,-8,0,0,0,0,0,0,0,0,0,0,0,0,0,0,0,0,0,0,0,0,0,0,0]} 1. d4 d5 2. c4 e6 3. Nf3 a6 4. e3 Nf6 5. Nc3 Nbd7 6. Qc2 dxc4 7. a4 b6 8. Bxc4 Bb7 9. e4 c5 10. d5 exd5 11. exd5 Bd6 12. O-O O-O 13. Bg5 Re8 {Inhibits Ne4.} 14. Rfe1 h6 15. Bh4 Rxe1+ 16. Rxe1 Qf8 (16... Qc7 $11) 17. Qd3 {White is more active.} (17. Ne4 $1 $14) 17... g6 18. Ne4 Nxe4 19. Qxe4 Qg7 20. b3 {The position is equal.} Nf6 21. Qd3 Rd8 22. Bg3 Bxg3 23. hxg3 {[%cal Od5d6] [#] Strongly threatening d6!} b5 24. axb5 axb5 25. Bxb5 Bxd5 26. Bc4 {Black must now prevent Re5.} Qf8 27. Rd1 Qe7 28. Qd2 Kg7 29. Qd3 Rd7 30. Bxd5 Rxd5 31. Qc2 Rxd1+ 32. Qxd1 $11 {[%mdl 4096] Endgame. KQN-KQN} Qe4 33. Nd2 Qd3 34. Qc1 Ng4 35. Nf1 Qd4 36. Qd2 (36. Qf4 {simplifies} Qxf4 37. gxf4 Nf6 38. Nd2) 36... Qa1 (36... Qxd2 {simplifies} 37. Nxd2 f5 38. f3 Ne5) 37. Qc2 Qd4 38. Qd2 Qe5 39. Qd1 h5 40. Qd2 Kh7 41. Qd7 Qf6 42. Qd2 Qe6 43. Qc2 Qd5 44. Qc3 Kg8 45. Qc2 Kf8 46. Qd2 Qe5 ({Much weaker is} 46... Qxb3 $6 47. f3 $16) 47. Qd8+ (47. f3 $5 Nf6 $8 48. Qe3 Qxe3+ 49. Nxe3 $11) 47... Kg7 48. Qd2 {Wards off Qb2} Nf6 49. Qe3 Qf5 50. Qc3 Kg8 51. f3 Qe6 52. Qxc5 Qxb3 53. Qe5 Nd5 54. Qe8+ Kg7 55. Qe5+ Kh7 56. Qd4 Nc3 {[#] ( -> ...Ne2+)} 57. Kh2 Ne2 58. Qd2 Qb5 59. Qe3 Nd4 60. Qxd4 Qxf1 {Weighted Error Value: White=0.03 (flawless) /Black=0.05 (flawless) .  Mistake:       	White=1     	Black=1      OK:         	White=25    	Black=9      Best:        	---       	Black=3} 1/2-1/2

[Event "45th FIDE Womens Olympiad 2024"]
[Site "Budapest"]
[Date "2024.09.15"]
[Round "5.36"]
[White "Calzetta Ruiz, Monica"]
[Black "Machlik, Monika"]
[Result "1/2-1/2"]
[ECO "B12"]
[WhiteElo "2199"]
[BlackElo "2109"]
[Annotator "TA"]
[PlyCount "136"]
[EventDate "2024.09.05"]
[EventType "team-tourn"]
[EventCountry "HUN"]
[SourceTitle "playchess.com"]
[Source "ChessBase"]
[SourceQuality "1"]
[WhiteTeam "Spain"]
[BlackTeam "Norway"]
[WhiteTeamCountry "ESP"]
[BlackTeamCountry "NOR"]
[TimeControl "40/5400+30:1800+30"]

{[%evp 9,136,11,9,0,10,0,-5,-23,-24,-26,-15,-28,-13,-13,-8,-9,0,-14,-20,-26,-25,-23,-18,-41,-39,-54,-29,-23,-25,-26,-26,-83,-38,-52,-30,-37,-30,-25,0,0,0,0,22,28,25,34,36,12,208,204,224,203,189,134,153,153,139,143,113,121,349,350,345,339,400,383,425,425,540,534,503,325,335,313,331,311,329,333,355,355,347,343,364,362,535,540,590,562,554,270,764,446,1007,513,666,582,5575,5575,5575,5575,5575,5500,5270,4823,4512,8,8,8,8,0,8,8,8,0,8,0,0,0,0,0,0,0,0,0,0,0,0,0,0]} 1. e4 c6 2. d4 d5 3. e5 c5 4. dxc5 e6 5. Be3 Nd7 {[%csl LRc5,LRe5]} 6. Bb5 Ne7 7. Nf3 Nf5 8. Bd4 Qa5+ 9. Nc3 {[%cal Ob2b4]} a6 10. Bxd7+ Bxd7 11. O-O Bxc5 12. Bxc5 Qxc5 13. Ne2 Bb5 14. Re1 Bxe2 15. Rxe2 O-O 16. a4 b5 17. Ra3 b4 18. Rd3 Rfc8 19. g4 {[%cal Bg2g4,Bg4g5,Bg5h6,Bh6h7][%mdl 32]} Ne7 20. Rd4 (20. b3 $11 {remains equal.}) 20... Nc6 21. Rf4 Rf8 22. Qd3 Qe7 {Prevents Ng5. Strongly threatening ...g5.} 23. g5 Qd8 24. Rh4 {[%csl Gh4][%cal Rd3h7] [#]} g6 25. Qd2 a5 26. Qf4 Ne7 27. Nd4 h5 28. gxh6 {[#] White wants to mate with h7+.} Nf5 $2 (28... Kh7 $11 {and Black stays safe.}) 29. Nxf5 $18 exf5 30. h7+ Kh8 {And now ...g5 would win.} 31. e6 ({White should play} 31. Qd4 $18 {aiming for e6+.} Qg5+ 32. Kf1) 31... Qf6 $16 32. e7 $36 {[%mdl 2048] White is on the roll. White is more active.} Rfe8 33. Qe5 {Really sharp!} Qxe5 34. Rxe5 {[%cal Ob2b3][%mdl 4096] Endgame. KRR-KRR} Ra7 $2 (34... f6 $16 35. Re6 (35. Rxd5 Rxe7 36. b3 Rxh7 $16) 35... Ra7) 35. Rxd5 $18 Raxe7 36. Rxa5 Re1+ 37. Kg2 R1e2 38. Rc5 ({Resist} 38. Rxb4 Rxc2 39. Ra7 Re4 40. Rxe4 fxe4 $18) 38... b3 39. cxb3 Rxb2 40. b4 g5 41. Rhc4 Kxh7 42. Rxf5 Kg6 43. Rf3 f5 44. Rc6+ Kh5 45. Rxf5 ({Don't play} 45. b5 Re4 46. Rxf5 Rxa4 $18) 45... Rxb4 46. a5 {[%cal Ba4a5,Ba5a6,Ba6b7][%mdl 32] Threatens to win with h3.} Ra4 (46... Rg4+ $142 47. Kf1 Ra4) 47. h3 Rh8 48. a6 Rh6 49. Rff6 (49. Rxh6+ $142 Kxh6 50. Rf6+ Kg7 51. Rb6) 49... Rh7 $2 (49... Rxf6 50. Rxf6 Ra3) 50. Rb6 {Rf8 is the strong threat.} g4 (50... Rh8 $142 51. Rb7 Rh6 52. Rxh6+ Kxh6) 51. Rb7 gxh3+ 52. Kxh3 Rxb7 53. axb7 {KR-KR} Rb4 54. Rf7 Kg6 55. Rc7 Kf5 56. Kg3 Rb3+ 57. f3 $2 (57. Kg2 $18 Ke6 58. Kf1) 57... Rb2 $1 $11 {The position is equal.} 58. Rh7 Kg6 59. Rc7 {Hoping for Kf4.} Kf5 60. Kh3 Kg5 61. Kg3 Kf5 62. f4 Rb3+ 63. Kg2 Kxf4 64. Kf2 Ke5 65. Ke2 Kd6 66. Rh7 Kc6 67. Kd2 Rxb7 68. Rxb7 Kxb7 {White really could win this.   Weighted Error Value: White=0.20 (precise) /Black=0.26 (precise) .  Loses game:     	---       	Black=2      Mistake:       	White=3     	Black=3      Inaccurate:     	White=1     	Black=2      OK:         	White=24    	Black=25     Best:        	White=5     	Black=6} 1/2-1/2

[Event "45th FIDE Womens Olympiad 2024"]
[Site "Budapest"]
[Date "2024.09.15"]
[Round "5.37"]
[White "Stefanova, Antoaneta"]
[Black "Rogule, Laura"]
[Result "1-0"]
[ECO "A07"]
[WhiteElo "2416"]
[BlackElo "2248"]
[Annotator "TA"]
[PlyCount "85"]
[EventDate "2024.09.05"]
[EventType "team-tourn"]
[EventCountry "HUN"]
[SourceTitle "playchess.com"]
[Source "ChessBase"]
[SourceQuality "1"]
[WhiteTeam "Bulgaria"]
[BlackTeam "Latvia"]
[WhiteTeamCountry "BUL"]
[BlackTeamCountry "LAT"]
[TimeControl "40/5400+30:1800+30"]

{[%evp 11,85,-2,12,4,6,0,0,0,18,16,12,13,7,12,54,44,44,25,35,-1,56,47,46,34,50,10,46,22,77,80,75,76,64,69,132,138,192,170,179,175,358,362,368,356,367,363,362,378,547,569,520,373,474,483,483,469,491,482,483,476,545,541,549,547,539,539,511,493,590,567,700,698,1065,1060,5018,5018]} 1. Nf3 d5 2. g3 c6 3. Bg2 Bg4 4. O-O Nd7 5. d3 Ngf6 6. h3 Bh5 7. Qe1 (7. g4 $5 Bg6 $8 8. Nh4 $11) 7... e5 8. Nh4 Bc5 9. e4 {The position is equal.} dxe4 10. dxe4 O-O 11. a4 a5 12. Nd2 Re8 13. Nc4 Bf8 14. Bg5 Qc7 15. f3 Re6 ({Black should play} 15... b5 $11 16. Ne3 h6 17. Bxf6 Nxf6) 16. Bd2 b6 17. Kh1 Nc5 18. Bc3 Nfd7 19. f4 exf4 (19... f6 $1 $11 {remains equal.}) 20. gxf4 $16 f6 {[%cal Oc5e4] [#]} 21. e5 fxe5 22. fxe5 (22. Nxe5 Bd6 $15) 22... Rae8 {Black is on the road to losing.} (22... g6 $14) 23. Qf2 Kh8 {[#]} (23... h6 $16 24. Bf3 Bxf3+ 25. Qxf3 Qd8) 24. Nd6 $1 {[%mdl 512]} Bxd6 25. exd6 $40 {[%mdl 128] White goes for the king.} Rxd6 (25... Qd8 {is a better defense.}) 26. Qg3 $18 {[%csl Gc3][%cal Rg3g7]} Nf6 27. Nf5 {aiming for Nxg7.} Rd7 28. Bxf6 {Hoping for Nxg7.} gxf6 29. Qh4 $1 {[%csl LRf6,LRh5]} Be2 (29... Rg8 $142 30. Qxf6+ (30. Qxh5 Rd2 $11) 30... Rdg7) 30. Qxf6+ Rg7 31. Rfe1 Ne4 32. Qxg7+ {White is clearly winning.} (32. Rxe2 $2 {perishes.} Nxf6 33. Rxe8+ Nxe8 $19) 32... Qxg7 33. Nxg7 Kxg7 34. Kh2 (34. Rxe2 Ng3+ 35. Kh2 Nxe2 $16) 34... Nd6 35. Bxc6 Rc8 36. Rxe2 Rxc6 {[%mdl 4096] Endgame. KRR-KRN} 37. Rg1+ Kf6 38. Rf1+ Nf5 39. c3 Rc5 40. Re8 Kg6 41. Rb8 Rc6 42. Rg8+ Kf7 43. Rg5 {Weighted Error Value: White=0.15 (very precise) /Black=0.40.  Mistake:       	---       	Black=6      Inaccurate:     	White=2     	Black=3      OK:         	White=15    	Black=8      Best:        	White=4     	Black=4} (43. Rxf5+ Kxg8 44. Rf3 Kg7 $16) 1-0

[Event "45th FIDE Womens Olympiad 2024"]
[Site "Budapest"]
[Date "2024.09.15"]
[Round "5.38"]
[White "Berzina, Ilze"]
[Black "Salimova, Nurgyul"]
[Result "0-1"]
[ECO "C73"]
[WhiteElo "2200"]
[BlackElo "2412"]
[Annotator "TA"]
[PlyCount "64"]
[EventDate "2024.09.05"]
[EventType "team-tourn"]
[EventCountry "HUN"]
[SourceTitle "playchess.com"]
[Source "ChessBase"]
[SourceQuality "1"]
[WhiteTeam "Latvia"]
[BlackTeam "Bulgaria"]
[WhiteTeamCountry "LAT"]
[BlackTeamCountry "BUL"]
[TimeControl "40/5400+30:1800+30"]

{[%evp 13,64,2,3,0,0,-9,-4,-9,-17,-30,0,-24,-64,-68,-78,-73,-76,-78,-68,-57,-73,-117,-94,-164,-166,-160,-150,-232,-231,-227,-253,-234,-219,-216,-210,-246,-220,-227,-211,-255,-247,-297,-309,-289,-300,-378,-268,-422,-425,-735,-750,-1247,-1237]} 1. e4 e5 2. Nf3 Nc6 3. Bb5 a6 4. Ba4 d6 5. Bxc6+ bxc6 6. d4 exd4 7. Nxd4 c5 8. Nf3 g6 9. Bg5 Qd7 10. Nc3 {The position is equal.} Bg7 11. Qd2 Rb8 12. Rb1 h6 13. Bf4 g5 14. Bg3 Ne7 15. O-O f5 16. exf5 O-O {[%cal Oc8b7]} 17. h4 g4 (17... Nxf5 $6 18. hxg5 Rb4 19. Nd5 $11) 18. Nh2 (18. Ne1 $17) 18... Nxf5 $19 19. Nd5 Bb7 (19... Bxb2 $2 {too greedy.} 20. c3 $18 (20. Nxg4 Nxg3 21. fxg3 Rxf1+ 22. Rxf1 Qxg4 $11)) 20. c4 (20. Nf4 $17) 20... Bd4 {This pair of bishops is nice.} 21. Kh1 Bxd5 22. cxd5 Qg7 {[%cal Rd4b2]} 23. b3 Rbe8 24. Qd3 h5 25. Rbe1 Qf7 26. Rxe8 Rxe8 27. Qd2 Qxd5 28. Qg5+ Bg7 {aiming for ...Nxg3+.} 29. Bf4 Kf8 {Threatens to win with ...Qf7.} 30. f3 (30. Qxh5 $2 {perishes.} Ng3+ 31. fxg3 Qxh5 $19) (30. Bg3 $142) 30... g3 {Black is clearly winning.} 31. Bxg3 (31. Qxh5 $142 gxh2 32. Kxh2) 31... Qf7 {[#] Hoping for ...Bh6.} 32. Re1 Bh6 {White got outplayed after the opening.   Weighted Error Value: White=0.65/Black=0.09 (flawless) .  Mistake:       	White=4     	---        Inaccurate:     	White=2     	Black=1      OK:         	White=5     	Black=12     Best:        	White=1     	Black=3} 0-1

[Event "45th FIDE Womens Olympiad 2024"]
[Site "Budapest"]
[Date "2024.09.15"]
[Round "5.38"]
[White "Oyenga, Justine Anassika"]
[Black "Moreno Mora, Milaydes Lourdes"]
[Result "0-1"]
[ECO "B50"]
[WhiteElo "1503"]
[BlackElo "1694"]
[PlyCount "128"]
[EventDate "2024.09.05"]
[EventType "team-tourn"]
[EventCountry "HUN"]
[WhiteTeam "Togo"]
[BlackTeam "Aruba"]
[WhiteTeamCountry "TOG"]
[BlackTeamCountry "ARN"]
[TimeControl "40/5400+30:1800+30"]

1. e4 c5 2. Nf3 d6 3. Nc3 Nf6 4. Bc4 a6 5. Ng5 e6 6. O-O h6 7. Nf3 Be7 8. d4 cxd4 9. Nxd4 b5 10. Bb3 b4 11. Ba4+ Bd7 12. Bxd7+ Qxd7 13. Nce2 Nxe4 14. c3 bxc3 15. Nxc3 Nxc3 16. bxc3 Nc6 17. Bb2 Nxd4 18. cxd4 d5 19. Re1 O-O 20. Re3 Rfc8 21. Ba3 Bxa3 22. Rxa3 Rc4 23. Rb1 Qa7 24. Rd3 Rb8 25. Rxb8+ Qxb8 26. g3 Qb2 27. Rd2 Rc1 28. Rxb2 Rxd1+ 29. Kg2 Rxd4 30. Rb8+ Kh7 31. Kf1 Rd2 32. a3 Rd3 33. a4 Rd4 34. a5 Ra4 35. Rb7 Kg6 36. Ke2 Rxa5 37. f3 Ra2+ 38. Ke3 Rxh2 39. Rb6 Ra2 40. f4 a5 41. g4 Ra3+ 42. Kd4 Ra4+ 43. Ke3 Re4+ 44. Kf3 f5 45. gxf5+ Kxf5 46. Ra6 Rxf4+ 47. Ke3 a4 48. Ra8 Re4+ 49. Kd3 g5 50. Rf8+ Kg4 51. Rf1 a3 52. Rg1+ Kf3 53. Rf1+ Kg2 54. Ra1 Rf4 55. Ra2+ Kg3 56. Kc3 e5 57. Ra1 Rf3+ 58. Kb4 h5 59. Ka4 h4 60. Kb5 h3 61. Kc5 h2 62. Kxd5 Kg2 63. Ra2+ Kg1 64. Ra1+ Rf1 {0-} 0-1

[Event "45th FIDE Womens Olympiad 2024"]
[Site "Budapest"]
[Date "2024.09.15"]
[Round "5.39"]
[White "Radeva, Viktoria"]
[Black "Ter-Avetisjana, Agnesa Stepania"]
[Result "1/2-1/2"]
[ECO "B11"]
[WhiteElo "2297"]
[BlackElo "2134"]
[Annotator "TA"]
[PlyCount "72"]
[EventDate "2024.09.05"]
[EventType "team-tourn"]
[EventCountry "HUN"]
[SourceTitle "playchess.com"]
[Source "ChessBase"]
[SourceQuality "1"]
[WhiteTeam "Bulgaria"]
[BlackTeam "Latvia"]
[WhiteTeamCountry "BUL"]
[BlackTeamCountry "LAT"]
[TimeControl "40/5400+30:1800+30"]

{[%evp 10,72,13,11,27,10,23,11,6,13,2,6,0,0,0,6,20,19,20,23,14,16,17,18,12,0,0,-22,-12,-62,-40,-39,-25,-52,16,7,14,0,35,27,39,19,21,31,37,12,20,14,19,0,0,-11,0,0,0,-55,-55,-55,-56,-56,-56,-56,-56,-61,-61]} 1. e4 c6 2. Nc3 d5 3. Nf3 Bg4 4. h3 Bxf3 5. Qxf3 e6 6. Be2 {[%cal Bf1e2,Be2d1,Bd1c2][%mdl 32]} Bc5 {[%cal Bf8c5,Bc5d4,Bd4e5][%mdl 32]} 7. Qg3 Bd4 8. exd5 exd5 {The position is equal.} 9. O-O Nd7 10. Bd1 Ne7 11. Ne2 Be5 12. Qf3 Ng6 13. d4 Bc7 14. c3 O-O 15. Bc2 Nf6 16. Bg5 Qd6 $1 17. g3 {Active counter play!} Ne4 $1 18. Be3 Rae8 19. Rfe1 (19. Rae1 $11) 19... f5 20. Nf4 {[%cal Be2f4,Bf4d3,Bd3e5][%mdl 32]} Qd7 21. h4 Nh8 ({Better is} 21... Nxf4 $15 22. Bxf4 Re6) 22. Kg2 Nf7 23. Nd3 g6 24. Bf4 Bb6 25. Qd1 Nf6 26. Ne5 Qc8 27. Nxf7 Rxf7 28. Qd2 Ne4 29. Qd3 Bc7 30. Qf3 Rfe7 31. Re3 Nd2 32. Qe2 (32. Rxe7 $1 $11 Nxf3 33. Rxc7) 32... Rxe3 $15 {Black is slightly better.} 33. Bxe3 {A strong pair of Bishops.} Nc4 {[#] And now ...f4 would win.} 34. Qf3 Nxe3+ 35. fxe3 Qe6 36. Re1 h5 {Weighted Error Value: White=0.11 (very precise) /Black=0.09 (flawless) .  Mistake:       	White=2     	Black=1      Inaccurate:     	White=2     	Black=1      OK:         	White=13    	Black=13     Best:        	---       	Black=2      Strong:       	---       	Black=2} 1/2-1/2

[Event "45th FIDE Womens Olympiad 2024"]
[Site "Budapest"]
[Date "2024.09.15"]
[Round "5.39"]
[White "Aponte, Samantha"]
[Black "Kponsou, Afiwa"]
[Result "1/2-1/2"]
[ECO "B06"]
[WhiteElo "1454"]
[BlackElo "1453"]
[PlyCount "65"]
[EventDate "2024.09.05"]
[EventType "team-tourn"]
[EventCountry "HUN"]
[WhiteTeam "Aruba"]
[BlackTeam "Togo"]
[WhiteTeamCountry "ARN"]
[BlackTeamCountry "TOG"]
[TimeControl "40/5400+30:1800+30"]

1. e4 g6 2. Nf3 Bg7 3. Bc4 e6 4. d3 c6 5. c3 d5 6. exd5 cxd5 7. Bb3 Nc6 8. d4 b5 9. a3 a5 10. O-O Nge7 11. Nbd2 O-O 12. Re1 Nf5 13. Nf1 Qb6 14. Bc2 Bb7 15. Ne3 Nxe3 16. Bxe3 Qc7 17. Qd2 Ne7 18. Bh6 Rac8 19. Bxg7 Kxg7 20. Rac1 h6 21. Ne5 f5 22. Re3 g5 23. Qe2 Ba6 24. Qh5 Rf6 25. h3 Qd8 26. Bd3 Qe8 27. Qxe8 Rxe8 28. Rce1 f4 29. Rf3 Nf5 30. Ng4 Nh4 31. Nxf6 Nxf3+ 32. gxf3 Kxf6 33. a4 1/2-1/2

[Event "45th FIDE Womens Olympiad 2024"]
[Site "Budapest"]
[Date "2024.09.15"]
[Round "5.40"]
[White "Krumina, Linda"]
[Black "Krasteva, Beloslava"]
[Result "1-0"]
[ECO "D05"]
[WhiteElo "2091"]
[BlackElo "2295"]
[Annotator "TA"]
[PlyCount "97"]
[EventDate "2024.09.05"]
[EventType "team-tourn"]
[EventCountry "HUN"]
[SourceTitle "playchess.com"]
[Source "ChessBase"]
[SourceQuality "1"]
[WhiteTeam "Latvia"]
[BlackTeam "Bulgaria"]
[WhiteTeamCountry "LAT"]
[BlackTeamCountry "BUL"]
[TimeControl "40/5400+30:1800+30"]

{[%evp 16,97,-7,-11,2,0,0,0,0,-22,0,0,0,0,0,0,0,-4,0,0,0,0,0,0,22,30,22,25,56,46,59,49,50,49,76,69,75,56,104,52,56,37,43,0,0,0,0,0,0,-14,-20,-15,13,25,9,14,35,0,45,44,40,9,8,0,3,-12,2538,1806,2635,2685,2556,2485,2189,1942,2859,2600,2037,1975,29972,29969,29976,29977,29974,29971]} 1. d4 Nf6 2. Nf3 e6 3. e3 b6 4. Bd3 Bb7 5. O-O d5 6. b3 Bd6 7. Bb2 O-O 8. Ne5 c5 9. Nd2 Nc6 {[%cal Bb8c6,Bc6e7,Be7f5][%mdl 32]} 10. f4 Rc8 11. a3 Ne7 {The position is equal.} 12. Qf3 {[#] Repels Ne4} b5 $1 13. Bxb5 (13. c3 c4) 13... cxd4 14. Bxd4 Rxc2 15. Qd1 Rc8 16. b4 Nf5 {[#] ...Nxd4 would now be deadly.} 17. Nb3 ({Don't play} 17. Bxa7 Ra8 18. Bd4 Nxd4 19. exd4 Qb6 $17) 17... Ne4 18. Rc1 Rxc1 19. Qxc1 f6 20. Nd7 Rf7 21. Nbc5 Bxc5 22. Nxc5 Bc8 23. Qb2 Ned6 24. Bd3 Nc4 25. Bxc4 dxc4 26. Rc1 {White is more active.} Qd5 (26... e5 $14 27. fxe5 fxe5 28. Bxe5 Nxe3) 27. Qc3 ({White should play} 27. Rd1 $16) 27... Nd6 $14 28. Qc2 e5 29. Bc3 {Black must now prevent Rd1.} exf4 30. Rd1 Qc6 31. exf4 Re7 32. a4 Bg4 33. Re1 {Against Re2} Qe8 34. Rxe7 Qxe7 35. Qd2 {Wards off Qe3+} Kf7 36. Qd5+ Be6 {Black is weak on the dark squares} (36... Kg6 $5 37. Qd2 h6 $15) 37. Qh5+ Kf8 38. Qe2 Bd5 39. Qd2 Bc6 40. b5 Nb7 $2 {[%mdl 8192] Loses the game.} (40... Nxb5 $11 41. Bb4 c3) 41. Nxb7 $18 Qxb7 {[%mdl 4096] Endgame. KQB-KQB} 42. Qd6+ Qe7 43. Qxe7+ ({Worse is} 43. Qxc6 Qe3+ 44. Kf1 Qd3+ 45. Kf2 Qc2+ 46. Kf1 Qd3+ 47. Kf2 Qc2+ 48. Kf1 Qd3+ $11) 43... Kxe7 44. bxc6 {KB-KP} Kd6 45. f5 Kxc6 46. Kf2 h5 47. Ke3 {White mates.} Kd5 48. h4 a6 49. g3 {Weighted Error Value: White=0.09 (flawless) /Black=0.27 (precise) .  Loses game:     	---       	Black=1      Mistake:       	White=1     	Black=1      Inaccurate:     	White=3     	Black=4      OK:         	White=15    	Black=14     Best:        	White=1     	Black=2} 1-0